Workbook

Sheet NOTES (hidden)
B2: The model has actual and test data to illustrate the workings of the model. | E2: ='Model update'!B5 -> 2024-25 | F2: ='Model update'!B8 -> 2023-24 | G2: =IF('Model update'!B9="HY23","2022",'Model update'!B9) -> 2022-23
B4: Issue | C4: Location | D4: Item | E4: Comment
A6: AER: | B6: 1 | C6: 'Model update'!B17:B22 | D6: CPI | E6: ="Updated December "&LEFT(E2,4)-1&" CPI for "&E2 -> Updated December 2023 CPI for 2024-25 | F6: NOTE: This worksheet is programmed to update for each year - use as checklist and note any placeholders or changes
F7: NOTE: Worksheet names in this file are programmed to update each year once each worksheet is accessed and a cell is selected
B8: =B6+1 -> 2 | C8: 'Model update'!B35:B38 | D8: ="Xt for "&E2 -> Xt for 2024-25 | E8: ="Updated "&$E$2&" value" -> Updated 2024-25 value
B10: =B8+1 -> 3 | C10: 'Model update'!B44:B48 | D10: Real Pre-tax WACC (rptw) | E10: ="Updated "&$E$2&" value" -> Updated 2024-25 value
B12: =B10+1 -> 4 | C12: 'Model update'!G18:G21 | D12: ="Pass Through Amount for "&E2 -> Pass Through Amount for 2024-25 | E12: ="Updated "&E2&" AP(t) value" -> Updated 2024-25 AP(t) value
B14: =B12+1 -> 5 | C14: ="Prop"&E2&"DistTar!E8:E96" -> Prop2024-25DistTar!E8:E96 | D14: =F2&" tariffs" -> 2023-24 tariffs | E14: ="Updated from "&F2&" model" -> Updated from 2023-24 model
B16: =B14+1 -> 6 | C16: ARS!B6:B12 | D16: =F2&" ARS tariffs" -> 2023-24 ARS tariffs | E16: ="Updated from "&F2&" model" -> Updated from 2023-24 model
A19: AGN: | B19: 1 | C19: 'Model update'!F30:F34 | D19: ="Estimated safeguard mechanism amount for "&F2 -> Estimated safeguard mechanism amount for 2023-24 | E19: ="Updated "&F2&" estimated cf(t) value, used for the cf(t-1) value for "&E2 -> Updated 2023-24 estimated cf(t) value, used for the cf(t-1) value for 2024-25
B21: =B19+1 -> 2 | C21: 'Model update'!G30:G34 | D21: ="Actual safeguard mechanism amount for "&G2 -> Actual safeguard mechanism amount for 2022-23 | E21: ="Updated "&G2&" actual cf(t) value, used for the cf(t-2) value for "&E2 -> Updated 2022-23 actual cf(t) value, used for the cf(t-2) value for 2024-25
B23: =B21+1 -> 3 | C23: 'Model update'!F43:F47 | D23: ="Estimated abolishments amount for "&F2 -> Estimated abolishments amount for 2023-24 | E23: ="Updated "&F2&" estimated af(t) value, used for the af(t-1) value for "&E2 -> Updated 2023-24 estimated af(t) value, used for the af(t-1) value for 2024-25
B25: =B23+1 -> 4 | C25: 'Model update'!G43:G47 | D25: ="Actual abolishments amount for "&G2 -> Actual abolishments amount for 2022-23 | E25: ="Updated "&G2&" actual af(t) value, used for the af(t-2) value for "&E2 -> Updated 2022-23 actual af(t) value, used for the af(t-2) value for 2024-25
B27: =B25+1 -> 5 | C27: ="Prop"&E2&"DistTar!D8:D96" -> Prop2024-25DistTar!D8:D96 | D27: ="Proposed "&E2&" Tariffs" -> Proposed 2024-25 Tariffs
B29: =B27+1 -> 6 | C29: ="Prop"&E2&"DistTar!F8:F96" -> Prop2024-25DistTar!F8:F96 | D29: ="Actual "&G2&" Volumes" -> Actual 2022-23 Volumes
B31: =B29+1 -> 7 | C31: ARS!C6:C12 | D31: ="Proposed "&E2&" Ancillary Reference Services Charges" -> Proposed 2024-25 Ancillary Reference Services Charges | E31: Calculated using formula
A39: Reset | B39: 1 | C39: Whole workbook | D39: Colour formatting | E39: Adjusted colour formatting away from yellow to ensure yellow can be used to clearly identify confidential material
B41: =B39+1 -> 2 | C41: 'Model update' | D41: CPI | E41: Adjusted CPI to have CPI for whole period
B43: =B41+1 -> 3 | C43: 'Model update' | D43: WACC | E43: Adjusted WACC to have WACC for whole period
B45: =B43+1 -> 4 | C45: 'Model update' | D45: Pass-through adjustment | E45: Adjusted to have $$ amount as input and calculate adjustment factor
B47: =B45+1 -> 5 | C47: 'Model update' | D47: Safeguard mechanism | E47: Added safeguard mechanism adjustment
B49: =B47+1 -> 6 | C49: 'Model update' | D49: Abolishments adjustment | E49: Added abolishments adjustment
B51: =B49+1 -> 7 | C51: Prop2024-25DistTar | D51: Tariffs | E51: Updated tariff schedule
B53: =B51+1 -> 8 | C53: 2024-25TarContForm | D53: Tariff Control Formula | E53: Simplified, and updated for new adjustment factors. Added denominators for calculations in adjustments.
B55: =B53+1 -> 9 | C55: 2024-25RebalContForm | D55: Rebalancing constraint formulae | E55: Updated for new adjustment factors
B57: =B55+1 -> 10 | C57: ARS | D57: Ancillary reference services | E57: Updated for new tariff schedule

Sheet Model update
A3: Tariff Approval Template for | B3: Aust. Gas Networks (Vic & Albury)
A5: Financial year | B5: 2024-25
A7: t | B7: =B5 -> 2024-25
A8: t-1 | B8: =LEFT(B7,4)-1&"-"&RIGHT(B7,2)-1 -> 2023-24
A9: t-2 | B9: =LEFT(B8,4)-1&"-"&RIGHT(B8,2)-1 -> 2022-23
A10: t-3 | B10: 2021-22
A13: Update orange highlighted cells where appropriate | D13: Darker orange cells should be overwritten with t-1 values before changing to new year
A15: CPI
D16: Pass Through Amounts : PT (t) | G16: AP(t) | H16: PT'(t)
A17: CPI Index December 2021 | B17: 121.3 | D17: =A44 -> 2023-24 | G17: 0
A18: CPI Index December 2022 | B18: 130.8 | D18: =A45 -> 2024-25 | G18: 0 | H18: =G18/'2024-25TarContForm'!$G$11 -> 0
A19: CPI Index December 2023 | B19: 136.1 | D19: 2025-26 | H19: =G19/'2024-25TarContForm'!$G$11 -> 0
A20: CPI Index December 2024 | B20: 140.08 | D20: 2026-27 | H20: =G20/'2024-25TarContForm'!$G$11 -> 0
A21: CPI Index December 2025 | B21: 144.1693622 | D21: 2027-28 | H21: =G21/'2024-25TarContForm'!$G$11 -> 0
A22: CPI Index December 2026 | B22: 148.3781054
D23: ="Pass Through Amount for "&B$5 -> Pass Through Amount for 2024-25 | H23: =(1+VLOOKUP($B$5,D17:H21,5,FALSE))/(1+VLOOKUP($B$8,D17:H21,5,FALSE))-1 -> 0
A24: ="CPI "&A44 -> CPI 2023-24 | B24: =B18/B17-1 -> 0.07831821929 | D24: The Pass Through Amount is to include an amount that reflects the time value of money between incurring the costs and recovering the costs
A25: ="CPI "&A45 -> CPI 2024-25 | B25: =B19/B18-1 -> 0.04051987768 | D25: and excludes any amounts already passed through in reference tariffs.
A26: CPI 2025-26 | B26: 0.02924320353
A27: CPI 2026-27 | B27: 0.02919304851
A28: CPI 2027-28 | B28: 0.02919304851 | D28: Safeguard Mechanism Amounts : C (t) | F28: Est. cf(t) | G28: Act. cf(t) | H28: C'(t) | M28: At=0 for the purpose of this formula as it is unknown at the time of
D29: 2022-23 | F29: 0 | G29: 0 | N29: calculation, and prevents a circular reference. This gives
A30: ="CPI " &$B$8 -> CPI 2023-24 | B30: =VLOOKUP(A30,A24:B28,2,FALSE) -> 0.07831821929 | D30: =A44 -> 2023-24 | N30: the intended outcome of calculating a percentage of the revenue
A31: ="CPI " &$B$5 -> CPI 2024-25 | B31: =VLOOKUP(A31,A24:B28,2,FALSE) -> 0.04051987768 | D31: =A45 -> 2024-25 | H31: =(('Model update'!F30*(1+'Model update'!B45)*(1+'Model update'!B25))+(('Model update'!G29-'Model update'!F29)*(1+'Model update'!B44)*(1+'Model update'!B45)*(1+'Model update'!B24)*(1+'Model update'!B25)))/'2024-25TarContForm'!$G$12 -> 0 | N31: that the adjustment will be added to.
D32: 2025-26 | H32: =(('Model update'!F31*(1+'Model update'!B46)*(1+'Model update'!B26))+(('Model update'!G30-'Model update'!F30)*(1+'Model update'!B45)*(1+'Model update'!B46)*(1+'Model update'!B25)*(1+'Model update'!B26)))/'2024-25TarContForm'!$G$12 -> 0
D33: 2026-27 | H33: =(('Model update'!F32*(1+'Model update'!B47)*(1+'Model update'!B27))+(('Model update'!G31-'Model update'!F31)*(1+'Model update'!B46)*(1+'Model update'!B47)*(1+'Model update'!B26)*(1+'Model update'!B27)))/'2024-25TarContForm'!$G$12 -> 0
A34: ="Xt for "&B$5 -> Xt for 2024-25 | D34: 2027-28 | H34: =(('Model update'!F33*(1+'Model update'!B48)*(1+'Model update'!B28))+(('Model update'!G32-'Model update'!F32)*(1+'Model update'!B47)*(1+'Model update'!B48)*(1+'Model update'!B27)*(1+'Model update'!B28)))/'2024-25TarContForm'!$G$12 -> 0
A35: 2024-25 | B35: 0.0009798240827
A36: 2025-26 | D36: ="Safeguard Mechanism Amount for "&B$5 -> Safeguard Mechanism Amount for 2024-25 | H36: =(1+VLOOKUP($B$5,D30:H34,5,FALSE))/(1+VLOOKUP($B$8,D30:H34,5,FALSE))-1 -> 0
A37: 2026-27
A38: 2027-28
A40: ="Xt for "&B$5 -> Xt for 2024-25 | B40: =VLOOKUP(B5,A35:B38,2,FALSE) -> 0.0009798240827
D41: Abolishment True-up Amounts : A (t) | E41: Fcst af(t) | F41: Estimate af(t) | G41: Act. af(t) | H41: A'(t)
A42: Pre-tax WACC for distribution tariffs | D42: 2022-23 | E42: 0 | F42: 0 | G42: 0
D43: =A44 -> 2023-24 | E43: =E52*(1+H52) -> 2524223.51 | F43: 1510720.785
A44: 2023-24 | B44: 0.02828234449 | D44: =A45 -> 2024-25 | E44: =E53*(1+H52)*(1+H52) -> 3865967.896 | H44: =(((F43-'Model update'!E43)*(1+'Model update'!B45)*(1+'Model update'!B25))+(('Model update'!G42-'Model update'!F42)*(1+'Model update'!B44)*(1+'Model update'!B45)*(1+'Model update'!B24)*(1+'Model update'!B25)))/'2024-25TarContForm'!$G$13 -> -0.00363374941
A45: =A35 -> 2024-25 | B45: 0.02892400393 | D45: 2025-26 | E45: =E54*(1+H52)*(1+H52)*(1+H52) -> 5283900.27 | H45: =(((F44-'Model update'!E44)*(1+'Model update'!B46)*(1+'Model update'!B26))+(('Model update'!G43-'Model update'!F43)*(1+'Model update'!B45)*(1+'Model update'!B46)*(1+'Model update'!B25)*(1+'Model update'!B26)))/'2024-25TarContForm'!$G$13 -> -0.01890000407
A46: =A36 -> 2025-26 | D46: 2026-27 | E46: =E55*(1+H52)*(1+H52)*(1+H52)*(1+H52) -> 8589122.165 | H46: =(((F45-'Model update'!E45)*(1+'Model update'!B47)*(1+'Model update'!B27))+(('Model update'!G44-'Model update'!F44)*(1+'Model update'!B46)*(1+'Model update'!B47)*(1+'Model update'!B26)*(1+'Model update'!B27)))/'2024-25TarContForm'!$G$13 -> -0.01821158853
A47: 2026-27 | D47: 2027-28 | E47: =E56*(1+H52)*(1+H52)*(1+H52)*(1+H52)*(1+H52) -> 12067256.97 | H47: =(((F46-'Model update'!E46)*(1+'Model update'!B48)*(1+'Model update'!B28))+(('Model update'!G45-'Model update'!F45)*(1+'Model update'!B47)*(1+'Model update'!B48)*(1+'Model update'!B27)*(1+'Model update'!B28)))/'2024-25TarContForm'!$G$13 -> -0.02960342753
A48: 2027-28
D49: ="Abolishment True-up Amount for "&B$5 -> Abolishment True-up Amount for 2024-25 | H49: =(1+VLOOKUP($B$5,D43:H47,5,FALSE))/(1+VLOOKUP($B$8,D43:H47,5,FALSE))-1 -> -0.00363374941
A50: ="Pre-tax real WACC for "&B8 -> Pre-tax real WACC for 2023-24 | B50: =VLOOKUP(B8,A44:B48,2,FALSE) -> 0.02828234449
A51: ="Pre-tax real WACC for "&B5 -> Pre-tax real WACC for 2024-25 | B51: =VLOOKUP(B5,A44:B48,2,FALSE) -> 0.02892400393 | E51: Fcst af(t) $22-23 | H51: Forecast inflation
E52: 2452623.941 | H52: 0.02919304851
E53: 3649762.081
E54: 4846900.222
E55: 7655285.694
E56: 10450193.69

Sheet Prop2024-25DistTar
B1: ="Tariff Approval - "&'Model update'!B3 -> Tariff Approval - Aust. Gas Networks (Vic & Albury) | D1: Prop2024-25DistTar
B3: ="PROPOSED "&'Model update'!$B$5&" DISTRIBUTION TARIFFS" -> PROPOSED 2024-25 DISTRIBUTION TARIFFS
B5: Proposed tariff name | C5: Existing tariff name | D5: Prop 2024-25 Tariff | E5: ="Exist "&'Model update'!$B$8&" Tariff" -> Exist 2023-24 Tariff | F5: Actual 2022-23 Volumes | G5: Prop Tar Revenue | H5: Exist Tar Revenue
B6: Tariff R - Residential (Central) | C6: Tariff V - AGN Central - Residential
B8: Fixed Charge | C8: Fixed Charge | D8: 0.2044 | E8: 0.2044596665 | F8: 219152514 | G8: =D8*$F8 -> 44794773.86 | H8: =E8*$F8 -> 44807849.92
B9: GJ 0 - 0.0274 | C9: GJ 0 - 0.0274 | D9: 15.1506 | E9: 14.02842161 | F9: 5206883.277 | G9: =D9*$F9 -> 78887405.77 | H9: 73044353.89
B10: GJ 0.0274 - 0.0493 | C10: GJ 0.0274 - 0.0493 | D10: 8.711 | E10: 8.065807368 | F10: 3232414.085 | G10: 28157559.09 | H10: 26072029.34
B11: GJ > 0.0493 | C11: GJ > 0.0493 | D11: 3.9768 | E11: 3.976825394 | F11: 18916813.93 | G11: 75228385.65 | H11: 75228866.01
B12: Tariff R - Residential (Northern) | C12: Tariff V - AGN North - Residential
B14: Fixed Charge | C14: Fixed Charge | D14: 0.2044 | E14: 0.2044596665 | F14: 31295663 | G14: =D14*$F14 -> 6396833.517 | H14: 6398700.82
B15: GJ 0 - 0.0274 | C15: GJ 0 - 0.0274 | D15: 13.3303 | E15: 12.34288313 | F15: 711833.972 | G15: 9488960.397 | H15: 8786083.525
B16: GJ 0.0274 - 0.0493 | C16: GJ 0.0274 - 0.0493 | D16: 7.8031 | E16: 7.225147494 | F16: 427223.4317 | G16: 3333667.16 | H16: 3086752.307
B17: GJ > 0.0493 | C17: GJ > 0.0493 | D17: 3.5634 | E17: 3.562875005 | F17: 2626780.461 | G17: 9360269.496 | H17: 9358890.45
B18: Tariff R - Residential (Murray Valley) | C18: Tariff V - Murray Valley - Residential
B20: Fixed Charge | C20: Fixed Charge | D20: 0.2602 | E20: 0.2602888514 | F20: 3230069 | G20: =D20*$F20 -> 840463.9538 | H20: =E20*$F20 -> 840750.9498
B21: GJ 0 - 0.0274 | C21: GJ 0 - 0.0274 | D21: 11.6056 | E21: 10.74593806 | F21: 63590.37422 | G21: =D21*$F21 -> 738004.447 | H21: 683338.2224
B22: GJ 0.0274 - 0.0493 | C22: GJ 0.0274 - 0.0493 | D22: 7.0209 | E22: 6.500862934 | F22: 34360.74742 | G22: 241243.3715 | H22: 223374.5093
B23: GJ > 0.0493 | C23: GJ > 0.0493 | D23: 3.6534 | E23: 3.65260027 | F23: 203445.2172 | G23: 743266.7566 | H23: 743104.0553
B24: Tariff R - Residential (Bairnsdale) | C24: Tariff V - Bairnsdale - Residential
B26: Fixed Charge | C26: Fixed Charge | D26: 0.3364 | E26: 0.3364577686 | F26: 1903886 | G26: =D26*$F26 -> 640467.2504 | H26: 640577.2352
B27: GJ 0 - 0.0274 | C27: GJ 0 - 0.0274 | D27: 24.7361 | E27: 22.90381428 | F27: 37197.4713 | G27: 920120.3699 | H27: 851963.9743
B28: GJ 0.0274 - 0.0493 | C28: GJ 0.0274 - 0.0493 | D28: 14.3873 | E28: 13.32162936 | F28: 18277.77262 | G28: 262967.7981 | H28: 243489.7125
B29: GJ > 0.0493 | C29: GJ > 0.0493 | D29: 6.5772 | E29: 6.574433535 | F29: 76273.03931 | G29: 501663.0341 | H29: 501452.0274
B30: Tariff R - Residential (Albury) | C30: Tariff V - Albury - Residential
B32: Fixed Charge | C32: Fixed Charge | D32: 0.266 | E32: 0.2661915288 | F32: 8744581 | G32: =D32*$F32 -> 2326058.546 | H32: =E32*$F32 -> 2327733.385
B33: GJ 0 - 0.0274 | C33: GJ 0 - 0.0274 | D33: 10.9714 | E33: 10.1587109 | F33: 201205.159 | G33: =D33*$F33 -> 2207502.281 | H33: 2043985.041
B34: GJ 0.0274 - 0.0493 | C34: GJ 0.0274 - 0.0493 | D34: 6.5578 | E34: 6.07209553 | F34: 120912.2937 | G34: 792918.6398 | H34: 734190.9982
B35: GJ > 0.0493 | C35: GJ > 0.0493 | D35: 2.9948 | E35: 2.994889387 | F35: 726702.8333 | G35: 2176329.645 | H35: 2176394.603
B36: Tariff C - Non-residential (Central) | C36: Tariff V - AGN Central - Non Residential
B38: Fixed Charge | C38: Fixed Charge | D38: 0.2044 | E38: 0.2044596665 | F38: 7430525 | G38: =D38*$F38 -> 1518799.31 | H38: =E38*$F38 -> 1519242.663
B39: GJ 0 - 0.05 | C39: GJ 0 - 0.05 | D39: 10.6936 | E39: 9.902602889 | F39: 263322.0245 | G39: =D39*$F39 -> 2815860.401 | H39: 2607573.441
B40: GJ 0.05 - 0.55 | C40: GJ 0.05 - 0.55 | D40: 4.5331 | E40: 4.197845884 | F40: 1445422.827 | G40: 6552246.217 | H40: 6067662.265
B41: GJ 0.55 - 1.37 | C41: GJ 0.55 - 1.37 | D41: 3.1311 | E41: 3.131123618 | F41: 1194962.288 | G41: 3741546.421 | H41: 3741574.644
B42: GJ > 1.37 | C42: GJ > 1.37 | D42: 1.2645 | E42: 1.264591169 | F42: 4386898.12 | G42: 5547232.673 | H42: 5547632.621
B43: Tariff C - Non-residential (Northern) | C43: Tariff V - AGN North - Non Residential
B45: Fixed Charge | C45: Fixed Charge | D45: 0.2044 | E45: 0.2044596665 | F45: 1196061 | G45: =D45*$F45 -> 244474.8684 | H45: 244546.2332
B46: GJ 0 - 0.05 | C46: GJ 0 - 0.05 | D46: 9.5923 | E46: 8.882698278 | F46: 36896.72291 | G46: 353924.4351 | H46: 327742.457
B47: GJ 0.05 - 0.55 | C47: GJ 0.05 - 0.55 | D47: 4.0969 | E47: 3.793876403 | F47: 181815.9048 | G47: 744881.5805 | H47: 689787.071
B48: GJ 0.55 - 1.37 | C48: GJ 0.55 - 1.37 | D48: 2.8295 | E48: 2.829535602 | F48: 130947.2044 | G48: 370515.1148 | H48: 370519.7769
B49: GJ > 1.37 | C49: GJ > 1.37 | D49: 1.1432 | E49: 1.143276849 | F49: 470094.2491 | G49: 537411.7455 | H49: 537447.8719
B50: Tariff C - Non-residential (Murray Valley) | C50: Tariff V - Murray Valley - Non Residential
B52: Fixed Charge | C52: Fixed Charge | D52: 0.2602 | E52: 0.2602888514 | F52: 134317 | G52: =D52*$F52 -> 34949.2834 | H52: =E52*$F52 -> 34961.21765
B53: GJ 0 - 0.05 | C53: GJ 0 - 0.05 | D53: 8.5768 | E53: 7.942332233 | F53: 4498.140614 | G53: =D53*$F53 -> 38579.65242 | H53: =E53*$F53 -> 35725.72719
B54: GJ 0.05 - 0.55 | C54: GJ 0.05 - 0.55 | D54: 4.5498 | E54: 4.213280276 | F54: 20797.37664 | G54: 94623.90422 | H54: 87625.17678
B55: GJ 0.55 - 1.37 | C55: GJ 0.55 - 1.37 | D55: 3.1443 | E55: 3.144397195 | F55: 12680.84005 | G55: 39872.36538 | H55: 39873.59789
B56: GJ > 1.37 | C56: GJ > 1.37 | D56: 1.4233 | E56: 1.423359613 | F56: 34805.34179 | G56: 49538.44297 | H56: 49540.51781
B57: Tariff C - Non-residential (Bairnsdale) | C57: Tariff V - Bairnsdale - Non Residential
B59: Fixed Charge | C59: Fixed Charge | D59: 0.3364 | E59: 0.3364577686 | F59: 46322 | G59: =D59*$F59 -> 15582.7208 | H59: 15585.39676
B60: GJ 0 - 0.05 | C60: GJ 0 - 0.05 | D60: 17.5846 | E60: 16.28379784 | F60: 1906.513277 | G60: 33525.27337 | H60: 31045.27678
B61: GJ 0.05 - 0.55 | C61: GJ 0.05 - 0.55 | D61: 7.7 | E61: 7.130380328 | F61: 13418.64819 | G61: 103323.5911 | H61: 95680.06509
B62: GJ 0.55 - 1.37 | C62: GJ 0.55 - 1.37 | D62: 5.3163 | E62: 5.316324811 | F62: 10990.36077 | G62: 58428.05498 | H62: 58428.32766
B63: GJ > 1.37 | C63: GJ > 1.37 | D63: 2.1313 | E63: 2.131283717 | F63: 53734.4807 | G63: 114524.2987 | H63: 114523.4238
B64: Tariff C - Non-residential (Albury) | C64: Tariff V - Albury - Non Residential
B66: Fixed Charge | C66: Fixed Charge | D66: 0.266 | E66: 0.2661915288 | F66: 343646 | G66: =D66*$F66 -> 91409.836 | H66: 91475.65412
B67: GJ 0 - 0.05 | C67: GJ 0 - 0.05 | D67: 8.0515 | E67: 7.455943099 | F67: 11287.54086 | G67: 90881.63526 | H67: 84159.26241
B68: GJ 0.05 - 0.55 | C68: GJ 0.05 - 0.55 | D68: 3.5708 | E68: 3.306664101 | F68: 58687.20141 | G68: 209560.2588 | H68: 194058.8621
B69: GJ 0.55 - 1.37 | C69: GJ 0.55 - 1.37 | D69: 2.348 | E69: 2.348085474 | F69: 43302.45854 | G69: 101674.1726 | H69: 101677.8739
B70: GJ > 1.37 | C70: GJ > 1.37 | D70: 0.9481 | E70: 0.9481861368 | F70: 143146.8669 | G70: 135717.5445 | H70: 135729.8748
B72: Tariff D - AGN Central | C72: Tariff D - AGN Central
B73: 0 - 10 | C73: 0 - 10 | D73: 1674.2542 | E73: 1616.50765 | F73: 1479.1355 | G73: =D73*$F73 -> 2476448.823 | H73: 2391033.851
B74: 10 - 50 | C74: 10 - 50 | D74: 1023.5317 | E74: 988.2292258 | F74: 1231.2341 | G74: 1260207.131 | H74: 1216741.521
B75: > 50 | C75: > 50 | D75: 186.9179 | E75: 180.4709479 | F75: 1223.0869 | G75: 228616.8349 | H75: 220731.6522
B77: Tariff D - AGN North | C77: Tariff D - AGN North
B78: 0 - 10 | C78: 0 - 10 | D78: 1674.2542 | E78: 1616.50765 | F78: 412.1523 | G78: =D78*$F78 -> 690047.7193 | H78: 666247.3458
B79: 10 - 50 | C79: 10 - 50 | D79: 1023.5317 | E79: 988.2292258 | F79: 589.9678 | G79: 603850.7453 | H79: 583023.4223
B80: > 50 | C80: > 50 | D80: 186.9179 | E80: 180.4709479 | F80: 377.3647 | G80: 70536.21726 | H80: 68103.3651
B82: Tariff D - Murray Valley | C82: Tariff D - Murray Valley
B83: 0 - 10 | C83: 0 - 10 | D83: 1951.5442 | E83: 1884.233639 | F83: 68.3539 | G83: =D83*$F83 -> 133395.6571 | H83: 128794.7177
B84: 10 - 50 | C84: 10 - 50 | D84: 1204.226 | E84: 1162.691153 | F84: 152.7795 | G84: 183981.0462 | H84: 177635.3731
B85: > 50 | C85: > 50 | D85: 205.1009 | E85: 198.0268483 | F85: 94.9413 | G85: 19472.54608 | H85: 18800.92641
B87: Tariff D - Bairnsdale | C87: Tariff D - Bairnsdale
B88: 0 - 10 | C88: 0 - 10 | D88: 2769.4409 | E88: 2673.920405 | F88: 15.9523 | G88: =D88*$F88 -> 44178.95207 | H88: 42655.18048
B89: 10 - 50 | C89: 10 - 50 | D89: 1715.6802 | E89: 1656.504847 | F89: 4.2655 | G89: 7318.233893 | H89: 7065.821425
B90: > 50 | C90: > 50 | D90: 312.901 | E90: 302.1087723 | F90: 0 | G90: 0 | H90: 0
B93: Tariff D - Albury | C93: Tariff D - Albury
B94: 0 - 10 | C94: 0 - 10 | D94: 1439.8592 | E94: 1390.197176 | F94: 43.4713 | G94: =D94*$F94 -> 62592.55124 | H94: 60433.67848
B95: 10 - 50 | C95: 10 - 50 | D95: 894.2848 | E95: 863.4401101 | F95: 72.5466 | G95: =D95*$F95 -> 64877.32167 | H95: 62639.64429
B96: > 50 | C96: > 50 | D96: 216.1682 | E96: 208.7123864 | F96: 4.4401 | G96: 959.8084248 | H96: 926.7038669
B99: Total Revenue | C99: Total Revenue | G99: =SUM(G8:G97) -> 297524428.4 | H99: =SUM(H8:H97) -> 287262533.5

Sheet 2024-25TarContForm
B1: ="Tariff Approval - "&'Model update'!B3 -> Tariff Approval - Aust. Gas Networks (Vic & Albury) | F1: ='Model update'!B5&"TarContForm" -> 2024-25TarContForm
B3: ='Model update'!$B$5&" TARIFF CONTROL FORMULA" -> 2024-25 TARIFF CONTROL FORMULA
B6: Adjustments | F6: Denominators for adjustment factors
B9: CPI | C9: ='Model update'!B31 -> 0.04051987768
B10: X-factor | C10: ='Model update'!B40 -> 0.0009798240827
B11: Pass-through Amount | C11: ='Model update'!H23 -> 0 | G11: =(1+C9)*(1-C10)*C23 -> 298609504.5
B12: Safeguard Mechanism Amount | C12: ='Model update'!H36 -> 0 | G12: =(1+C9)*(1-C10)*(1+C11)*(1+0)*C23 -> 298609504.5
B13: Abolishment True-up Amount | C13: ='Model update'!H49 -> -0.00363374941 | G13: =(1+C9)*(1-C10)*(1+C11)*(1+C12)*C23 -> 298609504.5
B18: ='Model update'!$B$5&" Distribution price control" -> 2024-25 Distribution price control
B20: Average price movement allowed | C20: =(1+C9)*(1-C10)*(1+C11)*(1+C12)*(1+C13) -> 1.035723067
B22: Proposed distribution tariff revenue | C22: =IF('Prop2024-25DistTar'!G99=0,"",'Prop2024-25DistTar'!G99) -> 297524428.4
B23: Existing distribution tariff revenue | C23: =IF('Prop2024-25DistTar'!H99=0,"",'Prop2024-25DistTar'!H99) -> 287262533.5
B24: Average price movement | C24: =IF(C22="","",C22/C23) -> 1.035723054
B26: =IF(C22="","",IF(C20>=C24,"DISTRIBUTION PRICE CONTROL FORMULA COMPLIANT","DISTRIBUTION PRICE CONTROL FORMULA BREACHED")) -> DISTRIBUTION PRICE CONTROL FORMULA COMPLIANT

Sheet 2024-25RebalContForm
B1: ="Tariff Approval - "&'Model update'!B3 -> Tariff Approval - Aust. Gas Networks (Vic & Albury) | C1: ='Model update'!B7&"RebalContForm" -> 2024-25RebalContForm
B3: ='Model update'!$B$5&" REBALANCING CONTROL FORMULA" -> 2024-25 REBALANCING CONTROL FORMULA
B6: Rebalancing control
B8: ='2024-25TarContForm'!B9 -> CPI | C8: ='2024-25TarContForm'!C9 -> 0.04051987768
B9: ='2024-25TarContForm'!B10 -> X-factor | C9: ='2024-25TarContForm'!C10 -> 0.0009798240827
B10: ='2024-25TarContForm'!B11 -> Pass-through Amount | C10: ='2024-25TarContForm'!C11 -> 0
B11: ='2024-25TarContForm'!B12 -> Safeguard Mechanism Amount | C11: ='2024-25TarContForm'!C12 -> 0
B12: ='2024-25TarContForm'!B13 -> Abolishment True-up Amount | C12: ='2024-25TarContForm'!C13 -> -0.00363374941
B13: Y factor | C13: 0.02
B15: Rebalancing control | C15: =(1+C8)*(1-C9)*(1+C10)*(1+C11)*(1+C13) -> 1.060290358 | F15: The abolishment true-up amount is not accounted for under the mechanism in the AA.
B19: Rebalancing control summary
C20: Existing | D20: Proposed | E20: Movement | F20: Assessment
B21: =B40 -> Tariff R - Residential (Central) | C21: =C61 -> 219153099.2 | D21: =C62 -> 227068124.4 | E21: =IF(C21=0,0,D21/C21) -> 1.036116419 | F21: =IF(E21=0,"",IF($C$15<=E21,"Breached","Compliant")) -> Compliant
B22: =B70 -> Tariff R - Residential (Northern) | C22: =C91 -> 27630427.1 | D22: =C92 -> 28579730.57 | E22: 1.034357177 | F22: Compliant
B23: =B100 -> Tariff R - Residential (Murray Valley) | C23: =C121 -> 2490567.737 | D23: =C122 -> 2562978.529 | E23: 1.02907401 | F23: Compliant
B24: =B130 -> Tariff R - Residential (Bairnsdale) | C24: =C151 -> 2237482.949 | D24: =C152 -> 2325218.452 | E24: 1.039211697 | F24: Compliant
B25: =B160 -> Tariff R - Residential (Albury) | C25: =C181 -> 7282304.027 | D25: =C182 -> 7502809.112 | E25: =IF(C25=0,0,D25/C25) -> 1.030279577 | F25: =IF(E25=0,"",IF($C$15<=E25,"Breached","Compliant")) -> Compliant
B26: =B190 -> Tariff C - Non-residential (Central) | C26: =C211 -> 19483685.63 | D26: =C212 -> 20175685.02 | E26: 1.035516863 | F26: Compliant
B27: =B220 -> Tariff C - Non-residential (Northern) | C27: =C241 -> 2170043.41 | D27: =C242 -> 2251207.744 | E27: 1.037402171 | F27: Compliant
B28: =B250 -> Tariff C - Non-residential (Murray Valley) | C28: =C271 -> 247726.2373 | D28: =C272 -> 257563.6484 | E28: 1.039710816 | F28: Compliant
B29: =B280 -> Tariff C - Non-residential (Bairnsdale) | C29: =C301 -> 315262.4901 | D29: =C302 -> 325383.9389 | E29: 1.032104831 | F29: Compliant
B30: =B310 -> Tariff C - Non-residential (Albury) | C30: =C331 -> 607101.5272 | D30: =C332 -> 629243.4472 | E30: =IF(C30=0,0,D30/C30) -> 1.036471527 | F30: =IF(E30=0,"",IF($C$15<=E30,"Breached","Compliant")) -> Compliant
B31: =B340 -> Tariff D - AGN Central | C31: =C355 -> 3828507.024 | D31: =C356 -> 3965272.79 | E31: 1.035723002 | F31: Compliant
B32: =B364 -> Tariff D - AGN North | C32: =C379 -> 1317374.133 | D32: =C380 -> 1364434.682 | E32: 1.035722994 | F32: Compliant
B33: =B388 -> Tariff D - Murray Valley | C33: =C403 -> 325231.0172 | D33: =C404 -> 336849.2493 | E33: 1.035723014 | F33: Compliant
B34: =B412 -> Tariff D - Bairnsdale | C34: =C427 -> 49721.0019 | D34: =C428 -> 51497.18596 | E34: 1.035723014 | F34: Compliant
B35: =B436 -> Tariff D - Albury | C35: =C451 -> 124000.0266 | D35: =C452 -> 128429.6813 | E35: 1.035723014 | F35: Compliant
C36: =SUM(C21:C35) -> 287262533.5 | D36: =SUM(D21:D35) -> 297524428.4 | E36: 1.035723054
B40: ='Prop2024-25DistTar'!B6 -> Tariff R - Residential (Central) | C40: 1 | D40: 2 | E40: 3 | F40: 4 | G40: 5
C41: 1 | D41: 2 | E41: 3 | F41: 4 | G41: 5
B42: Distribution tariff | C42: Fixed | D42: Blk1 | E42: Blk2 | F42: Blk3
B44: ="Existing : "&'Prop2024-25DistTar'!C6 -> Existing : Tariff V - AGN Central - Residential | C44: =INDEX('Prop2024-25DistTar'!$E$8:$E$11,C$41) -> 0.2044596665 | D44: =INDEX('Prop2024-25DistTar'!$E$8:$E$11,D$41) -> 14.02842161 | E44: =INDEX('Prop2024-25DistTar'!$E$8:$E$11,E$41) -> 8.065807368 | F44: =INDEX('Prop2024-25DistTar'!$E$8:$E$11,F$41) -> 3.976825394
B46: ="Proposed : "&B40 -> Proposed : Tariff R - Residential (Central) | C46: =INDEX('Prop2024-25DistTar'!$D$8:$D$11,C$40) -> 0.2044 | D46: =INDEX('Prop2024-25DistTar'!$D$8:$D$11,D$40) -> 15.1506 | E46: =INDEX('Prop2024-25DistTar'!$D$8:$D$11,E$40) -> 8.711 | F46: =INDEX('Prop2024-25DistTar'!$D$8:$D$11,F$40) -> 3.9768
B48: Distribution volumes (actual) | C48: =C$42 -> Fixed | D48: =D$42 -> Blk1 | E48: Blk2 | F48: Blk3
B50: =B44 -> Existing : Tariff V - AGN Central - Residential | C50: =INDEX('Prop2024-25DistTar'!$F$8:$F$11,C$41) -> 219152514 | D50: =INDEX('Prop2024-25DistTar'!$F$8:$F$11,D$41) -> 5206883.277 | E50: =INDEX('Prop2024-25DistTar'!$F$8:$F$11,E$41) -> 3232414.085 | F50: =INDEX('Prop2024-25DistTar'!$F$8:$F$11,F$41) -> 18916813.93
B52: =B46 -> Proposed : Tariff R - Residential (Central) | C52: =INDEX('Prop2024-25DistTar'!$F$8:$F$11,C$40) -> 219152514 | D52: =INDEX('Prop2024-25DistTar'!$F$8:$F$11,D$40) -> 5206883.277 | E52: =INDEX('Prop2024-25DistTar'!$F$8:$F$11,E$40) -> 3232414.085 | F52: =INDEX('Prop2024-25DistTar'!$F$8:$F$11,F$40) -> 18916813.93
B54: Distribution revenue | C54: =C$42 -> Fixed | D54: =D$42 -> Blk1 | E54: Blk2 | F54: Blk3
B56: =B50 -> Existing : Tariff V - AGN Central - Residential | C56: =INDEX('Prop2024-25DistTar'!$H$8:$H$11,C$41) -> 44807849.92 | D56: =INDEX('Prop2024-25DistTar'!$H$8:$H$11,D$41) -> 73044353.89 | E56: =INDEX('Prop2024-25DistTar'!$H$8:$H$11,E$41) -> 26072029.34 | F56: =INDEX('Prop2024-25DistTar'!$H$8:$H$11,F$41) -> 75228866.01
B58: =B52 -> Proposed : Tariff R - Residential (Central) | C58: =INDEX('Prop2024-25DistTar'!$G$8:$G$11,C$40) -> 44794773.86 | D58: =INDEX('Prop2024-25DistTar'!$G$8:$G$11,D$40) -> 78887405.77 | E58: =INDEX('Prop2024-25DistTar'!$G$8:$G$11,E$40) -> 28157559.09 | F58: =INDEX('Prop2024-25DistTar'!$G$8:$G$11,F$40) -> 75228385.65
B60: Revenue | C60: Total
B61: =B56 -> Existing : Tariff V - AGN Central - Residential | C61: =SUM(C56:F56) -> 219153099.2
B62: =B58 -> Proposed : Tariff R - Residential (Central) | C62: =SUM(C58:F58) -> 227068124.4
B64: Average price movement | C64: =IF(C62=0,"",C62/C61) -> 1.036116419
B66: =IF(C64="","",IF(C64<=$C$15,"REBALANCING CONTROL COMPLIANT","REBALANCING CONTROL BREACHED")) -> REBALANCING CONTROL COMPLIANT
B70: ='Prop2024-25DistTar'!B12 -> Tariff R - Residential (Northern) | C70: 1 | D70: 2 | E70: 3 | F70: 4
C71: 1 | D71: 2 | E71: 3 | F71: 4
B72: Distribution tariff | C72: Fixed | D72: Blk1 | E72: Blk2 | F72: Blk3
B74: ="Existing : "&'Prop2024-25DistTar'!C12 -> Existing : Tariff V - AGN North - Residential | C74: =INDEX('Prop2024-25DistTar'!$E$14:$E$17,C$41) -> 0.2044596665 | D74: =INDEX('Prop2024-25DistTar'!$E$14:$E$17,D$41) -> 12.34288313 | E74: =INDEX('Prop2024-25DistTar'!$E$14:$E$17,E$41) -> 7.225147494 | F74: =INDEX('Prop2024-25DistTar'!$E$14:$E$17,F$41) -> 3.562875005
B76: ="Proposed : "&B70 -> Proposed : Tariff R - Residential (Northern) | C76: =INDEX('Prop2024-25DistTar'!$D$14:$D$17,C$40) -> 0.2044 | D76: =INDEX('Prop2024-25DistTar'!$D$14:$D$17,D$40) -> 13.3303 | E76: =INDEX('Prop2024-25DistTar'!$D$14:$D$17,E$40) -> 7.8031 | F76: =INDEX('Prop2024-25DistTar'!$D$14:$D$17,F$40) -> 3.5634
B78: Distribution volumes (actual) | C78: Fixed | D78: PkBlk1 | E78: PkBlk2 | F78: PkBlk3
B80: =B74 -> Existing : Tariff V - AGN North - Residential | C80: =INDEX('Prop2024-25DistTar'!$F$14:$F$17,C$41) -> 31295663 | D80: =INDEX('Prop2024-25DistTar'!$F$14:$F$17,D$41) -> 711833.972 | E80: =INDEX('Prop2024-25DistTar'!$F$14:$F$17,E$41) -> 427223.4317 | F80: =INDEX('Prop2024-25DistTar'!$F$14:$F$17,F$41) -> 2626780.461
B82: =B76 -> Proposed : Tariff R - Residential (Northern) | C82: =INDEX('Prop2024-25DistTar'!$F$14:$F$17,C$40) -> 31295663 | D82: =INDEX('Prop2024-25DistTar'!$F$14:$F$17,D$40) -> 711833.972 | E82: =INDEX('Prop2024-25DistTar'!$F$14:$F$17,E$40) -> 427223.4317 | F82: =INDEX('Prop2024-25DistTar'!$F$14:$F$17,F$40) -> 2626780.461
B84: Distribution revenue | C84: Fixed | D84: PkBlk1 | E84: PkBlk2 | F84: PkBlk3
B86: =B80 -> Existing : Tariff V - AGN North - Residential | C86: =INDEX('Prop2024-25DistTar'!$H$14:$H$17,C$41) -> 6398700.82 | D86: =INDEX('Prop2024-25DistTar'!$H$14:$H$17,D$41) -> 8786083.525 | E86: =INDEX('Prop2024-25DistTar'!$H$14:$H$17,E$41) -> 3086752.307 | F86: =INDEX('Prop2024-25DistTar'!$H$14:$H$17,F$41) -> 9358890.45
B88: =B82 -> Proposed : Tariff R - Residential (Northern) | C88: =INDEX('Prop2024-25DistTar'!$G$14:$G$17,C$40) -> 6396833.517 | D88: =INDEX('Prop2024-25DistTar'!$G$14:$G$17,D$40) -> 9488960.397 | E88: =INDEX('Prop2024-25DistTar'!$G$14:$G$17,E$40) -> 3333667.16 | F88: =INDEX('Prop2024-25DistTar'!$G$14:$G$17,F$40) -> 9360269.496
B90: Revenue | C90: Total
B91: =B86 -> Existing : Tariff V - AGN North - Residential | C91: =SUM(C86:F86) -> 27630427.1
B92: =B88 -> Proposed : Tariff R - Residential (Northern) | C92: =SUM(C88:F88) -> 28579730.57
B94: Average price movement | C94: =IF(C92=0,"",C92/C91) -> 1.034357177
B96: =IF(C94="","",IF(C94<=$C$15,"REBALANCING CONTROL COMPLIANT","REBALANCING CONTROL BREACHED")) -> REBALANCING CONTROL COMPLIANT
B100: ='Prop2024-25DistTar'!B18 -> Tariff R - Residential (Murray Valley) | C100: 1 | D100: 2 | E100: 3 | F100: 4
C101: 1 | D101: 2 | E101: 3 | F101: 4
B102: Distribution tariff | C102: Fixed | D102: Blk1 | E102: Blk2 | F102: Blk3
B104: ="Existing : "&'Prop2024-25DistTar'!C18 -> Existing : Tariff V - Murray Valley - Residential | C104: =INDEX('Prop2024-25DistTar'!$E$20:$E$23,C$41) -> 0.2602888514 | D104: =INDEX('Prop2024-25DistTar'!$E$20:$E$23,D$41) -> 10.74593806 | E104: =INDEX('Prop2024-25DistTar'!$E$20:$E$23,E$41) -> 6.500862934 | F104: =INDEX('Prop2024-25DistTar'!$E$20:$E$23,F$41) -> 3.65260027
B106: ="Proposed : "&B100 -> Proposed : Tariff R - Residential (Murray Valley) | C106: =INDEX('Prop2024-25DistTar'!$D$20:$D$23,C$40) -> 0.2602 | D106: =INDEX('Prop2024-25DistTar'!$D$20:$D$23,D$40) -> 11.6056 | E106: =INDEX('Prop2024-25DistTar'!$D$20:$D$23,E$40) -> 7.0209 | F106: =INDEX('Prop2024-25DistTar'!$D$20:$D$23,F$40) -> 3.6534
B108: Distribution volumes (actual) | C108: Fixed | D108: PkBlk1 | E108: PkBlk2 | F108: PkBlk3
B110: =B104 -> Existing : Tariff V - Murray Valley - Residential | C110: =INDEX('Prop2024-25DistTar'!$F$20:$F$23,C$41) -> 3230069 | D110: =INDEX('Prop2024-25DistTar'!$F$20:$F$23,D$41) -> 63590.37422 | E110: =INDEX('Prop2024-25DistTar'!$F$20:$F$23,E$41) -> 34360.74742 | F110: =INDEX('Prop2024-25DistTar'!$F$20:$F$23,F$41) -> 203445.2172
B112: =B106 -> Proposed : Tariff R - Residential (Murray Valley) | C112: =INDEX('Prop2024-25DistTar'!$F$20:$F$23,C$40) -> 3230069 | D112: =INDEX('Prop2024-25DistTar'!$F$20:$F$23,D$40) -> 63590.37422 | E112: =INDEX('Prop2024-25DistTar'!$F$20:$F$23,E$40) -> 34360.74742 | F112: =INDEX('Prop2024-25DistTar'!$F$20:$F$23,F$40) -> 203445.2172
B114: Distribution revenue | C114: Fixed | D114: PkBlk1 | E114: PkBlk2 | F114: PkBlk3
B116: =B110 -> Existing : Tariff V - Murray Valley - Residential | C116: =INDEX('Prop2024-25DistTar'!$H$20:$H$23,C$41) -> 840750.9498 | D116: =INDEX('Prop2024-25DistTar'!$H$20:$H$23,D$41) -> 683338.2224 | E116: =INDEX('Prop2024-25DistTar'!$H$20:$H$23,E$41) -> 223374.5093 | F116: =INDEX('Prop2024-25DistTar'!$H$20:$H$23,F$41) -> 743104.0553
B118: =B112 -> Proposed : Tariff R - Residential (Murray Valley) | C118: =INDEX('Prop2024-25DistTar'!$G$20:$G$23,C$40) -> 840463.9538 | D118: =INDEX('Prop2024-25DistTar'!$G$20:$G$23,D$40) -> 738004.447 | E118: =INDEX('Prop2024-25DistTar'!$G$20:$G$23,E$40) -> 241243.3715 | F118: =INDEX('Prop2024-25DistTar'!$G$20:$G$23,F$40) -> 743266.7566
B120: Revenue | C120: Total
B121: =B116 -> Existing : Tariff V - Murray Valley - Residential | C121: =SUM(C116:F116) -> 2490567.737
B122: =B118 -> Proposed : Tariff R - Residential (Murray Valley) | C122: =SUM(C118:F118) -> 2562978.529
B124: Average price movement | C124: =IF(C122=0,"",C122/C121) -> 1.02907401
B126: =IF(C124="","",IF(C124<=$C$15,"REBALANCING CONTROL COMPLIANT","REBALANCING CONTROL BREACHED")) -> REBALANCING CONTROL COMPLIANT
B130: ='Prop2024-25DistTar'!B24 -> Tariff R - Residential (Bairnsdale) | C130: 1 | D130: 2 | E130: 3 | F130: 4
C131: 1 | D131: 2 | E131: 3 | F131: 4
B132: Distribution tariff | C132: Fixed | D132: Blk1 | E132: Blk2 | F132: Blk3
B134: ="Existing : "&'Prop2024-25DistTar'!C24 -> Existing : Tariff V - Bairnsdale - Residential | C134: =INDEX('Prop2024-25DistTar'!$E$26:$E$29,C$41) -> 0.3364577686 | D134: =INDEX('Prop2024-25DistTar'!$E$26:$E$29,D$41) -> 22.90381428 | E134: =INDEX('Prop2024-25DistTar'!$E$26:$E$29,E$41) -> 13.32162936 | F134: =INDEX('Prop2024-25DistTar'!$E$26:$E$29,F$41) -> 6.574433535
B136: ="Proposed : "&B130 -> Proposed : Tariff R - Residential (Bairnsdale) | C136: =INDEX('Prop2024-25DistTar'!$D$26:$D$29,C$40) -> 0.3364 | D136: =INDEX('Prop2024-25DistTar'!$D$26:$D$29,D$40) -> 24.7361 | E136: =INDEX('Prop2024-25DistTar'!$D$26:$D$29,E$40) -> 14.3873 | F136: =INDEX('Prop2024-25DistTar'!$D$26:$D$29,F$40) -> 6.5772
B138: Distribution volumes (actual) | C138: Fixed | D138: PkBlk1 | E138: PkBlk2 | F138: PkBlk3
B140: =B134 -> Existing : Tariff V - Bairnsdale - Residential | C140: =INDEX('Prop2024-25DistTar'!$F$26:$F$29,C$41) -> 1903886 | D140: =INDEX('Prop2024-25DistTar'!$F$26:$F$29,D$41) -> 37197.4713 | E140: =INDEX('Prop2024-25DistTar'!$F$26:$F$29,E$41) -> 18277.77262 | F140: =INDEX('Prop2024-25DistTar'!$F$26:$F$29,F$41) -> 76273.03931
B142: =B136 -> Proposed : Tariff R - Residential (Bairnsdale) | C142: =INDEX('Prop2024-25DistTar'!$F$26:$F$29,C$40) -> 1903886 | D142: =INDEX('Prop2024-25DistTar'!$F$26:$F$29,D$40) -> 37197.4713 | E142: =INDEX('Prop2024-25DistTar'!$F$26:$F$29,E$40) -> 18277.77262 | F142: =INDEX('Prop2024-25DistTar'!$F$26:$F$29,F$40) -> 76273.03931
B144: Distribution revenue | C144: Fixed | D144: PkBlk1 | E144: PkBlk2 | F144: PkBlk3
B146: =B140 -> Existing : Tariff V - Bairnsdale - Residential | C146: =INDEX('Prop2024-25DistTar'!$H$26:$H$29,C$41) -> 640577.2352 | D146: =INDEX('Prop2024-25DistTar'!$H$26:$H$29,D$41) -> 851963.9743 | E146: =INDEX('Prop2024-25DistTar'!$H$26:$H$29,E$41) -> 243489.7125 | F146: =INDEX('Prop2024-25DistTar'!$H$26:$H$29,F$41) -> 501452.0274
B148: =B142 -> Proposed : Tariff R - Residential (Bairnsdale) | C148: =INDEX('Prop2024-25DistTar'!$G$26:$G$29,C$40) -> 640467.2504 | D148: =INDEX('Prop2024-25DistTar'!$G$26:$G$29,D$40) -> 920120.3699 | E148: =INDEX('Prop2024-25DistTar'!$G$26:$G$29,E$40) -> 262967.7981 | F148: =INDEX('Prop2024-25DistTar'!$G$26:$G$29,F$40) -> 501663.0341
B150: Revenue | C150: Total
B151: =B146 -> Existing : Tariff V - Bairnsdale - Residential | C151: =SUM(C146:F146) -> 2237482.949
B152: =B148 -> Proposed : Tariff R - Residential (Bairnsdale) | C152: =SUM(C148:F148) -> 2325218.452
B154: Average price movement | C154: =IF(C152=0,"",C152/C151) -> 1.039211697
B156: =IF(C154="","",IF(C154<=$C$15,"REBALANCING CONTROL COMPLIANT","REBALANCING CONTROL BREACHED")) -> REBALANCING CONTROL COMPLIANT
B160: ='Prop2024-25DistTar'!B30 -> Tariff R - Residential (Albury) | C160: 1 | D160: 2 | E160: 3 | F160: 4
C161: 1 | D161: 2 | E161: 3 | F161: 4
B162: Distribution tariff | C162: Fixed | D162: Blk1 | E162: Blk2 | F162: Blk3
B164: ="Existing : "&'Prop2024-25DistTar'!C30 -> Existing : Tariff V - Albury - Residential | C164: =INDEX('Prop2024-25DistTar'!$E$32:$E$35,C$41) -> 0.2661915288 | D164: =INDEX('Prop2024-25DistTar'!$E$32:$E$35,D$41) -> 10.1587109 | E164: =INDEX('Prop2024-25DistTar'!$E$32:$E$35,E$41) -> 6.07209553 | F164: =INDEX('Prop2024-25DistTar'!$E$32:$E$35,F$41) -> 2.994889387
B166: ="Proposed : "&B160 -> Proposed : Tariff R - Residential (Albury) | C166: =INDEX('Prop2024-25DistTar'!$D$32:$D$35,C$40) -> 0.266 | D166: =INDEX('Prop2024-25DistTar'!$D$32:$D$35,D$40) -> 10.9714 | E166: =INDEX('Prop2024-25DistTar'!$D$32:$D$35,E$40) -> 6.5578 | F166: =INDEX('Prop2024-25DistTar'!$D$32:$D$35,F$40) -> 2.9948
B168: Distribution volumes (actual) | C168: Fixed | D168: PkBlk1 | E168: PkBlk2 | F168: PkBlk3
B170: =B164 -> Existing : Tariff V - Albury - Residential | C170: =INDEX('Prop2024-25DistTar'!$F$32:$F$35,C$41) -> 8744581 | D170: =INDEX('Prop2024-25DistTar'!$F$32:$F$35,D$41) -> 201205.159 | E170: =INDEX('Prop2024-25DistTar'!$F$32:$F$35,E$41) -> 120912.2937 | F170: =INDEX('Prop2024-25DistTar'!$F$32:$F$35,F$41) -> 726702.8333
B172: =B166 -> Proposed : Tariff R - Residential (Albury) | C172: =INDEX('Prop2024-25DistTar'!$F$32:$F$35,C$40) -> 8744581 | D172: =INDEX('Prop2024-25DistTar'!$F$32:$F$35,D$40) -> 201205.159 | E172: =INDEX('Prop2024-25DistTar'!$F$32:$F$35,E$40) -> 120912.2937 | F172: =INDEX('Prop2024-25DistTar'!$F$32:$F$35,F$40) -> 726702.8333
B174: Distribution revenue | C174: Fixed | D174: PkBlk1 | E174: PkBlk2 | F174: PkBlk3
B176: =B170 -> Existing : Tariff V - Albury - Residential | C176: =INDEX('Prop2024-25DistTar'!$H$32:$H$35,C$41) -> 2327733.385 | D176: =INDEX('Prop2024-25DistTar'!$H$32:$H$35,D$41) -> 2043985.041 | E176: =INDEX('Prop2024-25DistTar'!$H$32:$H$35,E$41) -> 734190.9982 | F176: =INDEX('Prop2024-25DistTar'!$H$32:$H$35,F$41) -> 2176394.603
B178: =B172 -> Proposed : Tariff R - Residential (Albury) | C178: =INDEX('Prop2024-25DistTar'!$G$32:$G$35,C$40) -> 2326058.546 | D178: =INDEX('Prop2024-25DistTar'!$G$32:$G$35,D$40) -> 2207502.281 | E178: =INDEX('Prop2024-25DistTar'!$G$32:$G$35,E$40) -> 792918.6398 | F178: =INDEX('Prop2024-25DistTar'!$G$32:$G$35,F$40) -> 2176329.645
B180: Revenue | C180: Total
B181: =B176 -> Existing : Tariff V - Albury - Residential | C181: =SUM(C176:G176) -> 7282304.027
B182: =B178 -> Proposed : Tariff R - Residential (Albury) | C182: =SUM(C178:G178) -> 7502809.112
B184: Average price movement | C184: =IF(C182=0,"",C182/C181) -> 1.030279577
B186: =IF(C184="","",IF(C184<=$C$15,"REBALANCING CONTROL COMPLIANT","REBALANCING CONTROL BREACHED")) -> REBALANCING CONTROL COMPLIANT
B190: ='Prop2024-25DistTar'!B36 -> Tariff C - Non-residential (Central) | C190: 1 | D190: 2 | E190: 3 | F190: 4 | G190: 5
C191: 1 | D191: 2 | E191: 3 | F191: 4 | G191: 5
B192: Distribution tariff | C192: Fixed | D192: Blk1 | E192: Blk2 | F192: Blk3 | G192: Blk4
B194: ="Existing : "&'Prop2024-25DistTar'!C36 -> Existing : Tariff V - AGN Central - Non Residential | C194: =INDEX('Prop2024-25DistTar'!$E$38:$E$42,C$41) -> 0.2044596665 | D194: =INDEX('Prop2024-25DistTar'!$E$38:$E$42,D$41) -> 9.902602889 | E194: =INDEX('Prop2024-25DistTar'!$E$38:$E$42,E$41) -> 4.197845884 | F194: =INDEX('Prop2024-25DistTar'!$E$38:$E$42,F$41) -> 3.131123618 | G194: =INDEX('Prop2024-25DistTar'!$E$38:$E$42,G$41) -> 1.264591169
B196: ="Proposed : "&B190 -> Proposed : Tariff C - Non-residential (Central) | C196: =INDEX('Prop2024-25DistTar'!$D$38:$D$42,C$40) -> 0.2044 | D196: =INDEX('Prop2024-25DistTar'!$D$38:$D$42,D$40) -> 10.6936 | E196: =INDEX('Prop2024-25DistTar'!$D$38:$D$42,E$40) -> 4.5331 | F196: =INDEX('Prop2024-25DistTar'!$D$38:$D$42,F$40) -> 3.1311 | G196: =INDEX('Prop2024-25DistTar'!$D$38:$D$42,G$40) -> 1.2645
B198: Distribution volumes (actual) | C198: Fixed | D198: PkBlk1 | E198: PkBlk2 | F198: PkBlk3 | G198: PkBlk4
B200: =B194 -> Existing : Tariff V - AGN Central - Non Residential | C200: =INDEX('Prop2024-25DistTar'!$F$38:$F$42,C$41) -> 7430525 | D200: =INDEX('Prop2024-25DistTar'!$F$38:$F$42,D$41) -> 263322.0245 | E200: =INDEX('Prop2024-25DistTar'!$F$38:$F$42,E$41) -> 1445422.827 | F200: =INDEX('Prop2024-25DistTar'!$F$38:$F$42,F$41) -> 1194962.288 | G200: =INDEX('Prop2024-25DistTar'!$F$38:$F$42,G$41) -> 4386898.12
B202: =B196 -> Proposed : Tariff C - Non-residential (Central) | C202: =INDEX('Prop2024-25DistTar'!$F$38:$F$42,C$40) -> 7430525 | D202: =INDEX('Prop2024-25DistTar'!$F$38:$F$42,D$40) -> 263322.0245 | E202: =INDEX('Prop2024-25DistTar'!$F$38:$F$42,E$40) -> 1445422.827 | F202: =INDEX('Prop2024-25DistTar'!$F$38:$F$42,F$40) -> 1194962.288 | G202: =INDEX('Prop2024-25DistTar'!$F$38:$F$42,G$40) -> 4386898.12
B204: Distribution revenue | C204: Fixed | D204: PkBlk1 | E204: PkBlk2 | F204: PkBlk3 | G204: PkBlk4
B206: =B200 -> Existing : Tariff V - AGN Central - Non Residential | C206: =INDEX('Prop2024-25DistTar'!$H$38:$H$42,C$41) -> 1519242.663 | D206: =INDEX('Prop2024-25DistTar'!$H$38:$H$42,D$41) -> 2607573.441 | E206: =INDEX('Prop2024-25DistTar'!$H$38:$H$42,E$41) -> 6067662.265 | F206: =INDEX('Prop2024-25DistTar'!$H$38:$H$42,F$41) -> 3741574.644 | G206: =INDEX('Prop2024-25DistTar'!$H$38:$H$42,G$41) -> 5547632.621
B208: =B202 -> Proposed : Tariff C - Non-residential (Central) | C208: =INDEX('Prop2024-25DistTar'!$G$38:$G$42,C$40) -> 1518799.31 | D208: =INDEX('Prop2024-25DistTar'!$G$38:$G$42,D$40) -> 2815860.401 | E208: =INDEX('Prop2024-25DistTar'!$G$38:$G$42,E$40) -> 6552246.217 | F208: =INDEX('Prop2024-25DistTar'!$G$38:$G$42,F$40) -> 3741546.421 | G208: =INDEX('Prop2024-25DistTar'!$G$38:$G$42,G$40) -> 5547232.673
B210: Revenue | C210: Total
B211: =B206 -> Existing : Tariff V - AGN Central - Non Residential | C211: =SUM(C206:G206) -> 19483685.63
B212: =B208 -> Proposed : Tariff C - Non-residential (Central) | C212: =SUM(C208:G208) -> 20175685.02
B214: Average price movement | C214: =IF(C212=0,"",C212/C211) -> 1.035516863
B216: =IF(C214="","",IF(C214<=$C$15,"REBALANCING CONTROL COMPLIANT","REBALANCING CONTROL BREACHED")) -> REBALANCING CONTROL COMPLIANT
B220: ='Prop2024-25DistTar'!B43 -> Tariff C - Non-residential (Northern) | C220: 1 | D220: 2 | E220: 3 | F220: 4 | G220: 5
C221: 1 | D221: 2 | E221: 3 | F221: 4 | G221: 5
B222: Distribution tariff | C222: Fixed | D222: Blk1 | E222: Blk2 | F222: Blk3 | G222: Blk4
B224: ="Existing : "&'Prop2024-25DistTar'!C43 -> Existing : Tariff V - AGN North - Non Residential | C224: =INDEX('Prop2024-25DistTar'!$E$45:$E$49,C$41) -> 0.2044596665 | D224: =INDEX('Prop2024-25DistTar'!$E$45:$E$49,D$41) -> 8.882698278 | E224: =INDEX('Prop2024-25DistTar'!$E$45:$E$49,E$41) -> 3.793876403 | F224: =INDEX('Prop2024-25DistTar'!$E$45:$E$49,F$41) -> 2.829535602 | G224: =INDEX('Prop2024-25DistTar'!$E$45:$E$49,G$41) -> 1.143276849
B226: ="Proposed : "&B220 -> Proposed : Tariff C - Non-residential (Northern) | C226: =INDEX('Prop2024-25DistTar'!$D$45:$D$49,C$40) -> 0.2044 | D226: =INDEX('Prop2024-25DistTar'!$D$45:$D$49,D$40) -> 9.5923 | E226: =INDEX('Prop2024-25DistTar'!$D$45:$D$49,E$40) -> 4.0969 | F226: =INDEX('Prop2024-25DistTar'!$D$45:$D$49,F$40) -> 2.8295 | G226: =INDEX('Prop2024-25DistTar'!$D$45:$D$49,G$40) -> 1.1432
B228: Distribution volumes (actual) | C228: Fixed | D228: PkBlk1 | E228: PkBlk2 | F228: PkBlk3 | G228: PkBlk4
B230: =B224 -> Existing : Tariff V - AGN North - Non Residential | C230: =INDEX('Prop2024-25DistTar'!$F$45:$F$49,C$41) -> 1196061 | D230: =INDEX('Prop2024-25DistTar'!$F$45:$F$49,D$41) -> 36896.72291 | E230: =INDEX('Prop2024-25DistTar'!$F$45:$F$49,E$41) -> 181815.9048 | F230: =INDEX('Prop2024-25DistTar'!$F$45:$F$49,F$41) -> 130947.2044 | G230: =INDEX('Prop2024-25DistTar'!$F$45:$F$49,G$41) -> 470094.2491
B232: =B226 -> Proposed : Tariff C - Non-residential (Northern) | C232: =INDEX('Prop2024-25DistTar'!$F$45:$F$49,C$40) -> 1196061 | D232: =INDEX('Prop2024-25DistTar'!$F$45:$F$49,D$40) -> 36896.72291 | E232: =INDEX('Prop2024-25DistTar'!$F$45:$F$49,E$40) -> 181815.9048 | F232: =INDEX('Prop2024-25DistTar'!$F$45:$F$49,F$40) -> 130947.2044 | G232: =INDEX('Prop2024-25DistTar'!$F$45:$F$49,G$40) -> 470094.2491
B234: Distribution revenue | C234: Fixed | D234: PkBlk1 | E234: PkBlk2 | F234: PkBlk3 | G234: PkBlk4
B236: =B230 -> Existing : Tariff V - AGN North - Non Residential | C236: =INDEX('Prop2024-25DistTar'!$H$45:$H$49,C$41) -> 244546.2332 | D236: =INDEX('Prop2024-25DistTar'!$H$45:$H$49,D$41) -> 327742.457 | E236: =INDEX('Prop2024-25DistTar'!$H$45:$H$49,E$41) -> 689787.071 | F236: =INDEX('Prop2024-25DistTar'!$H$45:$H$49,F$41) -> 370519.7769 | G236: =INDEX('Prop2024-25DistTar'!$H$45:$H$49,G$41) -> 537447.8719
B238: =B232 -> Proposed : Tariff C - Non-residential (Northern) | C238: =INDEX('Prop2024-25DistTar'!$G$45:$G$49,C$40) -> 244474.8684 | D238: =INDEX('Prop2024-25DistTar'!$G$45:$G$49,D$40) -> 353924.4351 | E238: =INDEX('Prop2024-25DistTar'!$G$45:$G$49,E$40) -> 744881.5805 | F238: =INDEX('Prop2024-25DistTar'!$G$45:$G$49,F$40) -> 370515.1148 | G238: =INDEX('Prop2024-25DistTar'!$G$45:$G$49,G$40) -> 537411.7455
B240: Revenue | C240: Total
B241: =B236 -> Existing : Tariff V - AGN North - Non Residential | C241: =SUM(C236:G236) -> 2170043.41
B242: =B238 -> Proposed : Tariff C - Non-residential (Northern) | C242: =SUM(C238:G238) -> 2251207.744
B244: Average price movement | C244: =IF(C242=0,"",C242/C241) -> 1.037402171
B246: =IF(C244="","",IF(C244<=$C$15,"REBALANCING CONTROL COMPLIANT","REBALANCING CONTROL BREACHED")) -> REBALANCING CONTROL COMPLIANT
B250: ='Prop2024-25DistTar'!B50 -> Tariff C - Non-residential (Murray Valley) | C250: 1 | D250: 2 | E250: 3 | F250: 4 | G250: 5
C251: 1 | D251: 2 | E251: 3 | F251: 4 | G251: 5
B252: Distribution tariff | C252: Fixed | D252: Blk1 | E252: Blk2 | F252: Blk3 | G252: Blk4
B254: ="Existing : "&'Prop2024-25DistTar'!C50 -> Existing : Tariff V - Murray Valley - Non Residential | C254: =INDEX('Prop2024-25DistTar'!$E$52:$E$56,C$41) -> 0.2602888514 | D254: =INDEX('Prop2024-25DistTar'!$E$52:$E$56,D$41) -> 7.942332233 | E254: =INDEX('Prop2024-25DistTar'!$E$52:$E$56,E$41) -> 4.213280276 | F254: =INDEX('Prop2024-25DistTar'!$E$52:$E$56,F$41) -> 3.144397195 | G254: =INDEX('Prop2024-25DistTar'!$E$52:$E$56,G$41) -> 1.423359613
B256: ="Proposed : "&B250 -> Proposed : Tariff C - Non-residential (Murray Valley) | C256: =INDEX('Prop2024-25DistTar'!$D$52:$D$56,C$40) -> 0.2602 | D256: =INDEX('Prop2024-25DistTar'!$D$52:$D$56,D$40) -> 8.5768 | E256: =INDEX('Prop2024-25DistTar'!$D$52:$D$56,E$40) -> 4.5498 | F256: =INDEX('Prop2024-25DistTar'!$D$52:$D$56,F$40) -> 3.1443 | G256: =INDEX('Prop2024-25DistTar'!$D$52:$D$56,G$40) -> 1.4233
B258: Distribution volumes (actual) | C258: Fixed | D258: PkBlk1 | E258: PkBlk2 | F258: PkBlk3 | G258: PkBlk4
B260: =B254 -> Existing : Tariff V - Murray Valley - Non Residential | C260: =INDEX('Prop2024-25DistTar'!$F$52:$F$56,C$41) -> 134317 | D260: =INDEX('Prop2024-25DistTar'!$F$52:$F$56,D$41) -> 4498.140614 | E260: =INDEX('Prop2024-25DistTar'!$F$52:$F$56,E$41) -> 20797.37664 | F260: =INDEX('Prop2024-25DistTar'!$F$52:$F$56,F$41) -> 12680.84005 | G260: =INDEX('Prop2024-25DistTar'!$F$52:$F$56,G$41) -> 34805.34179
B262: =B256 -> Proposed : Tariff C - Non-residential (Murray Valley) | C262: =INDEX('Prop2024-25DistTar'!$F$52:$F$56,C$40) -> 134317 | D262: =INDEX('Prop2024-25DistTar'!$F$52:$F$56,D$40) -> 4498.140614 | E262: =INDEX('Prop2024-25DistTar'!$F$52:$F$56,E$40) -> 20797.37664 | F262: =INDEX('Prop2024-25DistTar'!$F$52:$F$56,F$40) -> 12680.84005 | G262: =INDEX('Prop2024-25DistTar'!$F$52:$F$56,G$40) -> 34805.34179
B264: Distribution revenue | C264: Fixed | D264: PkBlk1 | E264: PkBlk2 | F264: PkBlk3 | G264: PkBlk4
B266: =B260 -> Existing : Tariff V - Murray Valley - Non Residential | C266: =INDEX('Prop2024-25DistTar'!$H$52:$H$56,C$41) -> 34961.21765 | D266: =INDEX('Prop2024-25DistTar'!$H$52:$H$56,D$41) -> 35725.72719 | E266: =INDEX('Prop2024-25DistTar'!$H$52:$H$56,E$41) -> 87625.17678 | F266: =INDEX('Prop2024-25DistTar'!$H$52:$H$56,F$41) -> 39873.59789 | G266: =INDEX('Prop2024-25DistTar'!$H$52:$H$56,G$41) -> 49540.51781
B268: =B262 -> Proposed : Tariff C - Non-residential (Murray Valley) | C268: =INDEX('Prop2024-25DistTar'!$G$52:$G$56,C$40) -> 34949.2834 | D268: =INDEX('Prop2024-25DistTar'!$G$52:$G$56,D$40) -> 38579.65242 | E268: =INDEX('Prop2024-25DistTar'!$G$52:$G$56,E$40) -> 94623.90422 | F268: =INDEX('Prop2024-25DistTar'!$G$52:$G$56,F$40) -> 39872.36538 | G268: =INDEX('Prop2024-25DistTar'!$G$52:$G$56,G$40) -> 49538.44297
B270: Revenue | C270: Total
B271: =B266 -> Existing : Tariff V - Murray Valley - Non Residential | C271: =SUM(C266:G266) -> 247726.2373
B272: =B268 -> Proposed : Tariff C - Non-residential (Murray Valley) | C272: =SUM(C268:G268) -> 257563.6484
B274: Average price movement | C274: =IF(C272=0,"",C272/C271) -> 1.039710816
B276: =IF(C274="","",IF(C274<=$C$15,"REBALANCING CONTROL COMPLIANT","REBALANCING CONTROL BREACHED")) -> REBALANCING CONTROL COMPLIANT
B280: ='Prop2024-25DistTar'!B57 -> Tariff C - Non-residential (Bairnsdale) | C280: 1 | D280: 2 | E280: 3 | F280: 4 | G280: 5
C281: 1 | D281: 2 | E281: 3 | F281: 4 | G281: 5
B282: Distribution tariff | C282: Fixed | D282: Blk1 | E282: Blk2 | F282: Blk3 | G282: Blk4
B284: ="Existing : "&'Prop2024-25DistTar'!C57 -> Existing : Tariff V - Bairnsdale - Non Residential | C284: =INDEX('Prop2024-25DistTar'!$E$59:$E$63,C$41) -> 0.3364577686 | D284: =INDEX('Prop2024-25DistTar'!$E$59:$E$63,D$41) -> 16.28379784 | E284: =INDEX('Prop2024-25DistTar'!$E$59:$E$63,E$41) -> 7.130380328 | F284: =INDEX('Prop2024-25DistTar'!$E$59:$E$63,F$41) -> 5.316324811 | G284: =INDEX('Prop2024-25DistTar'!$E$59:$E$63,G$41) -> 2.131283717
B286: ="Proposed : "&B280 -> Proposed : Tariff C - Non-residential (Bairnsdale) | C286: =INDEX('Prop2024-25DistTar'!$D$59:$D$63,C$40) -> 0.3364 | D286: =INDEX('Prop2024-25DistTar'!$D$59:$D$63,D$40) -> 17.5846 | E286: =INDEX('Prop2024-25DistTar'!$D$59:$D$63,E$40) -> 7.7 | F286: =INDEX('Prop2024-25DistTar'!$D$59:$D$63,F$40) -> 5.3163 | G286: =INDEX('Prop2024-25DistTar'!$D$59:$D$63,G$40) -> 2.1313
B288: Distribution volumes (actual) | C288: Fixed | D288: PkBlk1 | E288: PkBlk2 | F288: PkBlk3 | G288: PkBlk4
B290: =B284 -> Existing : Tariff V - Bairnsdale - Non Residential | C290: =INDEX('Prop2024-25DistTar'!$F$59:$F$63,C$40) -> 46322 | D290: =INDEX('Prop2024-25DistTar'!$F$59:$F$63,D$40) -> 1906.513277 | E290: =INDEX('Prop2024-25DistTar'!$F$59:$F$63,E$40) -> 13418.64819 | F290: =INDEX('Prop2024-25DistTar'!$F$59:$F$63,F$40) -> 10990.36077 | G290: =INDEX('Prop2024-25DistTar'!$F$59:$F$63,G$40) -> 53734.4807
B292: =B286 -> Proposed : Tariff C - Non-residential (Bairnsdale) | C292: =INDEX('Prop2024-25DistTar'!$F$59:$F$63,C$40) -> 46322 | D292: =INDEX('Prop2024-25DistTar'!$F$59:$F$63,D$40) -> 1906.513277 | E292: =INDEX('Prop2024-25DistTar'!$F$59:$F$63,E$40) -> 13418.64819 | F292: =INDEX('Prop2024-25DistTar'!$F$59:$F$63,F$40) -> 10990.36077 | G292: =INDEX('Prop2024-25DistTar'!$F$59:$F$63,G$40) -> 53734.4807
B294: Distribution revenue | C294: Fixed | D294: PkBlk1 | E294: PkBlk2 | F294: PkBlk3 | G294: PkBlk4
B296: =B290 -> Existing : Tariff V - Bairnsdale - Non Residential | C296: =INDEX('Prop2024-25DistTar'!$H$59:$H$63,C$41) -> 15585.39676 | D296: =INDEX('Prop2024-25DistTar'!$H$59:$H$63,D$41) -> 31045.27678 | E296: =INDEX('Prop2024-25DistTar'!$H$59:$H$63,E$41) -> 95680.06509 | F296: =INDEX('Prop2024-25DistTar'!$H$59:$H$63,F$41) -> 58428.32766 | G296: =INDEX('Prop2024-25DistTar'!$H$59:$H$63,G$41) -> 114523.4238
B298: =B292 -> Proposed : Tariff C - Non-residential (Bairnsdale) | C298: =INDEX('Prop2024-25DistTar'!$G$59:$G$63,C$40) -> 15582.7208 | D298: =INDEX('Prop2024-25DistTar'!$G$59:$G$63,D$40) -> 33525.27337 | E298: =INDEX('Prop2024-25DistTar'!$G$59:$G$63,E$40) -> 103323.5911 | F298: =INDEX('Prop2024-25DistTar'!$G$59:$G$63,F$40) -> 58428.05498 | G298: =INDEX('Prop2024-25DistTar'!$G$59:$G$63,G$40) -> 114524.2987
B300: Revenue | C300: Total
B301: =B296 -> Existing : Tariff V - Bairnsdale - Non Residential | C301: =SUM(C296:G296) -> 315262.4901
B302: =B298 -> Proposed : Tariff C - Non-residential (Bairnsdale) | C302: =SUM(C298:G298) -> 325383.9389
B304: Average price movement | C304: =IF(C302=0,"",C302/C301) -> 1.032104831
B306: =IF(C304="","",IF(C304<=$C$15,"REBALANCING CONTROL COMPLIANT","REBALANCING CONTROL BREACHED")) -> REBALANCING CONTROL COMPLIANT
B310: ='Prop2024-25DistTar'!B64 -> Tariff C - Non-residential (Albury) | C310: 1 | D310: 2 | E310: 3 | F310: 4 | G310: 5
C311: 1 | D311: 2 | E311: 3 | F311: 4 | G311: 5
B312: Distribution tariff | C312: Fixed | D312: Blk1 | E312: Blk2 | F312: Blk3 | G312: Blk4
B314: ="Existing : "&'Prop2024-25DistTar'!C64 -> Existing : Tariff V - Albury - Non Residential | C314: =INDEX('Prop2024-25DistTar'!$E$66:$E$70,C$41) -> 0.2661915288 | D314: =INDEX('Prop2024-25DistTar'!$E$66:$E$70,D$41) -> 7.455943099 | E314: =INDEX('Prop2024-25DistTar'!$E$66:$E$70,E$41) -> 3.306664101 | F314: =INDEX('Prop2024-25DistTar'!$E$66:$E$70,F$41) -> 2.348085474 | G314: =INDEX('Prop2024-25DistTar'!$E$66:$E$70,G$41) -> 0.9481861368
B316: ="Proposed : "&B310 -> Proposed : Tariff C - Non-residential (Albury) | C316: =INDEX('Prop2024-25DistTar'!$D$66:$D$70,C$40) -> 0.266 | D316: =INDEX('Prop2024-25DistTar'!$D$66:$D$70,D$40) -> 8.0515 | E316: =INDEX('Prop2024-25DistTar'!$D$66:$D$70,E$40) -> 3.5708 | F316: =INDEX('Prop2024-25DistTar'!$D$66:$D$70,F$40) -> 2.348 | G316: =INDEX('Prop2024-25DistTar'!$D$66:$D$70,G$40) -> 0.9481
B318: Distribution volumes (actual) | C318: Fixed | D318: PkBlk1 | E318: PkBlk2 | F318: PkBlk3 | G318: PkBlk4
B320: =B314 -> Existing : Tariff V - Albury - Non Residential | C320: =INDEX('Prop2024-25DistTar'!$F$66:$F$70,C$40) -> 343646 | D320: =INDEX('Prop2024-25DistTar'!$F$66:$F$70,D$40) -> 11287.54086 | E320: =INDEX('Prop2024-25DistTar'!$F$66:$F$70,E$40) -> 58687.20141 | F320: =INDEX('Prop2024-25DistTar'!$F$66:$F$70,F$40) -> 43302.45854 | G320: =INDEX('Prop2024-25DistTar'!$F$66:$F$70,G$40) -> 143146.8669
B322: =B316 -> Proposed : Tariff C - Non-residential (Albury) | C322: =INDEX('Prop2024-25DistTar'!$F$66:$F$70,C$40) -> 343646 | D322: =INDEX('Prop2024-25DistTar'!$F$66:$F$70,D$40) -> 11287.54086 | E322: =INDEX('Prop2024-25DistTar'!$F$66:$F$70,E$40) -> 58687.20141 | F322: =INDEX('Prop2024-25DistTar'!$F$66:$F$70,F$40) -> 43302.45854 | G322: =INDEX('Prop2024-25DistTar'!$F$66:$F$70,G$40) -> 143146.8669
B324: Distribution revenue | C324: Fixed | D324: PkBlk1 | E324: PkBlk2 | F324: PkBlk3 | G324: PkBlk4
B326: =B320 -> Existing : Tariff V - Albury - Non Residential | C326: =INDEX('Prop2024-25DistTar'!$H$66:$H$70,C$41) -> 91475.65412 | D326: =INDEX('Prop2024-25DistTar'!$H$66:$H$70,D$41) -> 84159.26241 | E326: =INDEX('Prop2024-25DistTar'!$H$66:$H$70,E$41) -> 194058.8621 | F326: =INDEX('Prop2024-25DistTar'!$H$66:$H$70,F$41) -> 101677.8739 | G326: =INDEX('Prop2024-25DistTar'!$H$66:$H$70,G$41) -> 135729.8748
B328: =B322 -> Proposed : Tariff C - Non-residential (Albury) | C328: =INDEX('Prop2024-25DistTar'!$G$66:$G$70,C$40) -> 91409.836 | D328: =INDEX('Prop2024-25DistTar'!$G$66:$G$70,D$40) -> 90881.63526 | E328: =INDEX('Prop2024-25DistTar'!$G$66:$G$70,E$40) -> 209560.2588 | F328: =INDEX('Prop2024-25DistTar'!$G$66:$G$70,F$40) -> 101674.1726 | G328: =INDEX('Prop2024-25DistTar'!$G$66:$G$70,G$40) -> 135717.5445
B330: Revenue | C330: Total
B331: =B326 -> Existing : Tariff V - Albury - Non Residential | C331: =SUM(C326:G326) -> 607101.5272
B332: =B328 -> Proposed : Tariff C - Non-residential (Albury) | C332: =SUM(C328:G328) -> 629243.4472
B334: Average price movement | C334: =IF(C332=0,"",C332/C331) -> 1.036471527
B336: =IF(C334="","",IF(C334<=$C$15,"REBALANCING CONTROL COMPLIANT","REBALANCING CONTROL BREACHED")) -> REBALANCING CONTROL COMPLIANT
B340: ='Prop2024-25DistTar'!B72 -> Tariff D - AGN Central
C341: 1 | D341: 2 | E341: 3
B342: Distribution tariff | C342: DemBlk1 | D342: DemBlk2 | E342: DemBlk2
B343: ="Existing: "&'Prop2024-25DistTar'!C72 -> Existing: Tariff D - AGN Central | C343: =INDEX('Prop2024-25DistTar'!$E$73:$E$75,C341) -> 1616.50765 | D343: =INDEX('Prop2024-25DistTar'!$E$73:$E$75,D341) -> 988.2292258 | E343: =INDEX('Prop2024-25DistTar'!$E$73:$E$75,E341) -> 180.4709479
B344: ="Proposed: "&B340 -> Proposed: Tariff D - AGN Central | C344: =INDEX('Prop2024-25DistTar'!$D$73:$D$75,C341) -> 1674.2542 | D344: =INDEX('Prop2024-25DistTar'!$D$73:$D$75,D341) -> 1023.5317 | E344: =INDEX('Prop2024-25DistTar'!$D$73:$D$75,E341) -> 186.9179
B346: Distribution volumes (actual) | C346: DemBlk1 | D346: DemBlk2 | E346: DemBlk2
B347: =B343 -> Existing: Tariff D - AGN Central | C347: =INDEX('Prop2024-25DistTar'!$F$73:$F$75,C$40) -> 1479.1355 | D347: =INDEX('Prop2024-25DistTar'!$F$73:$F$75,D$40) -> 1231.2341 | E347: =INDEX('Prop2024-25DistTar'!$F$73:$F$75,E$40) -> 1223.0869
B348: =B344 -> Proposed: Tariff D - AGN Central | C348: =INDEX('Prop2024-25DistTar'!$F$73:$F$75,C$40) -> 1479.1355 | D348: =INDEX('Prop2024-25DistTar'!$F$73:$F$75,D$40) -> 1231.2341 | E348: =INDEX('Prop2024-25DistTar'!$F$73:$F$75,E$40) -> 1223.0869
B350: Distribution revenue | C350: DemBlk1 | D350: DemBlk2 | E350: DemBlk2
B351: =B347 -> Existing: Tariff D - AGN Central | C351: =INDEX('Prop2024-25DistTar'!$H$73:$H$75,C341) -> 2391033.851 | D351: =INDEX('Prop2024-25DistTar'!$H$73:$H$75,D341) -> 1216741.521 | E351: =INDEX('Prop2024-25DistTar'!$H$73:$H$75,E341) -> 220731.6522
B352: =B348 -> Proposed: Tariff D - AGN Central | C352: =INDEX('Prop2024-25DistTar'!$G$73:$G$75,C341) -> 2476448.823 | D352: =INDEX('Prop2024-25DistTar'!$G$73:$G$75,D341) -> 1260207.131 | E352: =INDEX('Prop2024-25DistTar'!$G$73:$G$75,E341) -> 228616.8349
B354: Revenue | C354: Total
... 68 more rows

Sheet ARS
A1: ="Tariff Approval - "&'Model update'!B3 -> Tariff Approval - Aust. Gas Networks (Vic & Albury)
A3: Ancillary Reference Services (Exc GST)
B5: ='Model update'!$B$8 -> 2023-24 | C5: ='Model update'!$B$5 -> 2024-25
A6: Disconnection | B6: 81 | C6: =ROUND(B6*(1+'Model update'!$B$31),0) -> 84
A7: Reconnection | B7: 94 | C7: =ROUND(B7*(1+'Model update'!$B$31),0) -> 98
A8: Special Meter Read - Metropolitan | B8: 10.3 | C8: =ROUND(B8*(1+'Model update'!$B$31),1) -> 10.7
A9: Special Meter Read - Non Metropolitan | B9: 14.2 | C9: =ROUND(B9*(1+'Model update'!$B$31),1) -> 14.8
A10: Meter Removal | B10: 115 | C10: =ROUND(B10*(1+'Model update'!$B$31),0) -> 120
A11: Meter Reinstallation | B11: 115 | C11: =ROUND(B11*(1+'Model update'!$B$31),0) -> 120
A12: Meter and Gas Installation Test | B12: 243 | C12: =ROUND(B12*(1+'Model update'!$B$31),0) -> 253
A13: Service Abolishment - residential | B13: 220 | C13: =ROUND(B13*(1+'Model update'!$B$31),0) -> 229
